bitfinex/quotes_SOLUSD_20251118
["timestamp","ask_amount","ask_price","bid_price","bid_amount"]
[1763429546391,24.03900344,131.73,131.71,15.95265165]
[1763429546893,5.91804344,131.72,131.71,15.95265165]
[1763429547868,6.62804344,131.72,131.71,9.78882769]
[1763429548072,18.12096,131.7,131.69,6.16382396]
[1763429548291,24.03900344,131.7,131.68,6.21547109]
[1763429548496,18.83096,131.7,131.69,9.78882769]
[1763429548708,6.62804344,131.7,131.69,9.78882769]
[1763429549388,5.91804344,131.7,131.68,16.00429878]
[1763429549584,0.71,131.75,131.69,8.95114485]
[1763429549785,5.91804344,131.73,131.71,6.20830106]
[1763429550989,5.91804344,131.73,131.72,9.78882769]
[1763429551493,24.74900344,131.73,131.72,9.78882769]
[1763429551696,24.74900344,131.73,131.71,9.78882769]
[1763429551891,6.62804344,131.72,131.71,9.78882769]
[1763429552210,18.12096,131.7,131.69,9.78882769]
[1763429552410,24.03900344,131.7,131.69,9.78882769]
[1763429552589,24.74900344,131.7,131.68,9.78882769]
[1763429552794,5.91804344,131.69,131.68,9.78882769]
[1763429553411,5.91804344,131.69,131.68,15.99712875]
[1763429554090,6.62804344,131.69,131.68,15.99712875]
[1763429554289,6.62804344,131.69,131.68,9.78882769]
[1763429554478,6.62804344,131.69,131.67,6.20830106]
[1763429554479,5.91804344,131.7,131.67,9.78882769]
[1763429554682,0.71,131.73,131.68,0.7]
[1763429554683,18.12096,131.73,131.68,0.7]
[1763429554902,18.12096,131.73,131.69,6.20830106]
[1763429554903,5.91804344,131.72,131.69,6.20830106]
[1763429555288,5.91804344,131.74,131.7,24.65801598]
[1763429555490,6.62804344,131.76,131.74,9.78882769]
[1763429555697,5.91804344,131.76,131.74,9.78882769]
[1763429555907,24.74900344,131.76,131.74,9.78882769]
[1763429556097,6.62804344,131.75,131.73,9.78882769]
[1763429556303,5.91804344,131.74,131.73,9.78882769]
[1763429556510,18.12096,131.76,131.73,9.78882769]
[1763429556712,0.71,131.75,131.73,16.01172003]
[1763429556903,5.91804344,131.75,131.73,16.01172003]
[1763429557603,5.91804344,131.74,131.73,9.78882769]
[1763429557808,5.91804344,131.74,131.73,16.01172003]
[1763429558190,5.91804344,131.75,131.73,16.01172003]
[1763429558387,18.12096,131.76,131.73,16.71172003]
[1763429558584,18.12096,131.76,131.75,16.01172003]
[1763429560012,24.74900344,131.76,131.75,9.78882769]
[1763429560189,24.03900344,131.76,131.75,9.78882769]
[1763429560388,18.12096,131.76,131.75,9.78882769]
[1763429560696,24.03900344,131.78,131.76,9.78882769]
[1763429561006,102.9,131.88,131.77,9.78882769]
[1763429561192,5.91804344,131.83,131.79,16.01361487]
[1763429561516,5.91804344,131.82,131.79,16.01361487]
[1763429561700,5.91804344,131.81,131.79,16.01361487]
[1763429561896,5.91804344,131.83,131.81,9.78882769]
[1763429562111,5.91804344,131.85,131.81,16.01361487]
[1763429562416,5.91804344,131.85,131.82,9.78882769]
[1763429562588,5.91804344,131.85,131.83,6.22478718]
[1763429563203,5.91804344,131.85,131.82,16.01361487]
[1763429563204,6.57804344,131.84,131.82,16.01361487]
[1763429563386,0.66,131.84,131.82,9.78882769]
[1763429563595,5.91804344,131.83,131.82,9.78882769]
[1763429564125,24.69900344,131.83,131.82,9.78882769]
[1763429564305,24.03900344,131.83,131.81,9.78882769]
[1763429564504,18.12096,131.83,131.81,9.78882769]
[1763429564723,18.12096,131.83,131.81,16.01361487]
[1763429564724,24.03900344,131.83,131.81,16.01361487]
[1763429565045,18.12096,131.83,131.81,16.01361487]
[1763429565212,18.12096,131.83,131.82,6.22478718]
[1763429565603,18.12096,131.83,131.82,9.78882769]
[1763429566007,5.91804344,131.85,131.82,16.01361487]
[1763429566210,0.86,131.88,131.84,6.22478718]
[1763429566431,0.2,131.88,131.85,21.93165831]
[1763429566728,0.2,131.88,131.87,16.01361487]
[1763429567397,0.2,131.88,131.87,9.78882769]
[1763429568230,6.11804344,131.88,131.87,9.78882769]
[1763429569436,6.11804344,131.88,131.86,9.78882769]
[1763429569608,5.91804344,131.87,131.86,9.78882769]
[1763429569807,5.91804344,131.87,131.85,6.22478718]
[1763429569808,24.69900344,131.87,131.85,9.78882769]
[1763429570117,6.57804344,131.86,131.85,9.78882769]
[1763429570434,6.57804344,131.86,131.83,9.78882769]
[1763429570726,5.91804344,131.84,131.83,9.78882769]
[1763429572612,0.66,131.87,131.83,9.78882769]
[1763429572812,5.91804344,131.84,131.83,9.78882769]
[1763429573333,6.57804344,131.84,131.81,16.01361487]
[1763429573523,5.91804344,131.82,131.81,16.01361487]
[1763429574615,5.91804344,131.84,131.81,16.67361487]
[1763429574919,5.91804344,131.84,131.83,9.78882769]
[1763429575136,6.57804344,131.84,131.82,9.78882769]
[1763429575340,24.03900344,131.83,131.82,9.78882769]
[1763429575510,24.03900344,131.83,131.81,9.78882769]
[1763429575716,5.91804344,131.82,131.81,9.78882769]
[1763429576243,5.91804344,131.82,131.79,6.22478718]
[1763429576440,18.12096,131.81,131.8,9.78882769]
[1763429576939,18.12096,131.81,131.78,6.22478718]
[1763429576940,18.78096,131.81,131.78,6.22478718]
[1763429577150,0.66,131.8,131.79,9.78882769]
[1763429577653,6.57804344,131.8,131.79,9.78882769]
[1763429577852,18.12096,131.78,131.77,9.78882769]
[1763429578022,18.12096,131.78,131.77,0.66]
[1763429578023,24.03900344,131.78,131.77,0.66]
[1763429578221,24.03900344,131.78,131.76,16.01361487]
[1763429578422,5.91804344,131.77,131.76,16.01361487]
[1763429578617,5.91804344,131.77,131.76,9.78882769]
[1763429579437,5.91804344,131.78,131.76,10.44882769]
[1763429579638,5.91804344,131.78,131.76,16.67361487]
[1763429579856,18.12096,131.81,131.77,0.66]
[1763429580040,5.91804344,131.79,131.77,6.88478718]
[1763429580349,5.91804344,131.8,131.79,9.78882769]
[1763429580645,6.57804344,131.8,131.78,9.78882769]
[1763429580849,5.91804344,131.79,131.78,9.78882769]
[1763429581420,5.91804344,131.79,131.77,9.78882769]
[1763429581647,5.91804344,131.78,131.77,9.78882769]
[1763429581856,5.91804344,131.8,131.78,0.66]
[1763429582026,5.91804344,131.8,131.78,6.88478718]
[1763429582433,5.91804344,131.8,131.79,6.22478718]
[1763429583549,6.57804344,131.8,131.79,6.22478718]
[1763429583730,5.91804344,131.8,131.77,16.01361487]
[1763429583929,18.12096,131.81,131.79,6.22478718]
[1763429584142,5.91804344,131.8,131.79,6.22478718]
[1763429584343,5.91804344,131.8,131.79,6.88478718]
[1763429584549,5.91804344,131.81,131.79,6.22478718]
[1763429584768,108.61804344,131.92,131.81,9.78882769]
[1763429584926,0.66,131.9,131.86,9.78882769]
[1763429585133,5.91804344,131.89,131.86,9.78882769]
[1763429585345,5.91804344,131.89,131.87,10.44882769]
[1763429586052,5.91804344,131.9,131.87,16.66616273]
[1763429586665,0.66,131.94,131.87,16.36687113]
[1763429586826,5.91804344,131.94,131.88,9.78882769]
[1763429587161,5.91804344,131.92,131.9,9.78882769]
[1763429587460,5.91804344,131.91,131.9,9.78882769]
[1763429587629,5.91804344,131.91,131.89,9.78882769]
[1763429587952,24.03900344,131.9,131.87,16.00293438]
[1763429588157,18.12096,131.9,131.89,9.78882769]
[1763429588938,24.03900344,131.9,131.88,9.78882769]
[1763429589450,18.12096,131.9,131.88,0.66]
[1763429589840,18.12096,131.9,131.88,6.87410669]
[1763429590225,18.12096,131.9,131.88,0.66]
[1763429590658,5.91804344,131.89,131.87,16.00293438]
[1763429590831,18.78096,131.9,131.86,9.78882769]
[1763429591028,5.91804344,131.88,131.86,9.78882769]
[1763429591234,5.91804344,131.87,131.85,9.78882769]
[1763429591641,5.91804344,131.86,131.85,9.78882769]
[1763429591841,6.63804344,131.86,131.83,9.78882769]
[1763429592048,5.91804344,131.84,131.82,9.78882769]
[1763429592252,5.91804344,131.87,131.83,6.62804344]
[1763429592427,5.91804344,131.88,131.85,16.00636799]
[1763429592754,5.91804344,131.87,131.85,16.00636799]
[1763429592962,9.26771268,131.86,131.84,9.78882769]
[1763429593136,9.26771268,131.86,131.83,6.9275403]
[1763429593330,9.98771268,131.86,131.84,9.78882769]
[1763429593536,9.26771268,131.85,131.84,9.78882769]
[1763429594460,27.38867268,131.87,131.84,10.49882769]
[1763429594764,27.38867268,131.87,131.86,9.78882769]
[1763429594939,9.98771268,131.87,131.84,6.23570785]
[1763429596156,9.26771268,131.86,131.84,6.23570785]
[1763429597163,9.26771268,131.85,131.84,6.23570785]
[1763429597538,18.12096,131.84,131.83,9.78882769]
[1763429597739,28.10867268,131.84,131.8,6.23570785]
[1763429597935,9.26771268,131.81,131.79,6.23570785]
[1763429598132,27.38867268,131.82,131.81,9.78882769]
[1763429598365,27.38867268,131.82,131.81,16.02453554]
[1763429598546,9.26771268,131.82,131.81,16.02453554]
[1763429599267,9.26771268,131.82,131.81,9.78882769]
[1763429599469,48.3102043,131.94,131.81,9.78882769]
[1763429599470,0.72,131.88,131.81,10.50882769]
[1763429599669,9.26771268,131.85,131.84,16.05918302]
[1763429599973,9.26771268,131.85,131.84,9.78882769]
[1763429602286,9.26771268,131.85,131.84,18.14930147]
[1763429603881,0.72,131.87,131.84,18.14930147]
[1763429603882,18.12096,131.88,131.85,9.78882769]
[1763429604201,18.12096,131.88,131.87,16.07065027]
[1763429604495,27.38867268,131.88,131.87,9.78882769]
[1763429605360,9.26771268,131.89,131.87,18.86930147]
[1763429605565,27.38867268,131.89,131.88,8.36047378]
[1763429605801,28.10867268,131.89,131.88,8.36047378]
[1763429606283,28.10867268,131.89,131.87,18.14930147]
[1763429606590,9.26771268,131.88,131.87,18.14930147]
[1763429607195,163.5,131.94,131.87,22.91206886]
[1763429607409,312.6,131.96,131.91,16.08932829]
[1763429607410,9.26771268,131.92,131.91,16.08932829]
[1763429607566,9.26771268,131.94,131.92,9.78882769]
[1763429607765,0.2,131.96,131.92,9.78882769]
[1763429607766,9.26771268,131.95,131.94,9.78882769]
[1763429607976,27.38867268,131.95,131.94,9.78882769]
[1763429608269,9.26771268,131.95,131.94,9.78882769]
[1763429608684,9.98771268,131.95,131.94,9.78882769]
[1763429608873,9.98771268,131.95,131.94,6.28215321]
[1763429609282,9.98771268,131.95,131.93,6.28215321]
[1763429609493,28.10867268,131.94,131.93,16.0709809]
[1763429609700,28.10867268,131.94,131.93,6.28215321]
[1763429609865,28.10867268,131.94,131.92,16.0709809]
[1763429610070,9.98771268,131.93,131.92,16.0709809]
[1763429610971,9.98771268,131.93,131.91,16.07643702]
[1763429611176,27.38867268,131.92,131.91,9.78882769]
[1763429611584,27.38867268,131.93,131.91,18.17905476]
[1763429611779,27.38867268,131.93,131.92,6.27733239]
[1763429612883,9.98771268,131.93,131.92,6.27733239]
[1763429613182,18.12096,131.92,131.9,6.27733239]
[1763429613377,27.38867268,131.91,131.9,6.27733239]
[1763429613598,28.10867268,131.91,131.89,9.78882769]
[1763429613797,9.98771268,131.9,131.89,9.78882769]
[1763429614200,9.98771268,131.9,131.89,16.06616008]
[1763429614201,9.26771268,131.9,131.89,16.06616008]
[1763429614499,9.26771268,131.9,131.88,18.17905476]
[1763429614704,9.26771268,131.9,131.88,18.89905476]
[1763429615566,9.26771268,131.9,131.89,6.28211531]
[1763429615766,9.26771268,131.9,131.88,16.07160971]
[1763429616023,9.26771268,131.89,131.88,16.07160971]
[1763429616317,9.26771268,131.94,131.87,18.17905476]
[1763429616318,27.38867268,131.9,131.87,18.17905476]
[1763429616608,27.38867268,131.9,131.89,6.27465826]
[1763429616785,27.38867268,131.9,131.88,8.39022707]
[1763429617103,27.38867268,131.9,131.89,6.27324642]
[1763429618700,0.2,131.96,131.9,9.78882769]
[1763429618911,0.2,131.96,131.95,19.05654037]
[1763429619210,0.2,131.99,131.98,19.05654037]
[1763429619371,0.2,131.99,131.98,31.95164457]
[1763429619572,0.2,131.99,131.98,23.40393189]
[1763429619894,0.2,132.02,131.99,9.78882769]
[1763429620092,0.2,132.02,132.01,9.78882769]
[1763429620407,0.2,132.02,132.01,16.01224867]
[1763429620579,0.2,132.02,132.01,16.73224867]
[1763429620907,0.2,132.02,132.01,10.50882769]
[1763429621484,0.2,132.02,132.01,19.77654037]
[1763429621711,0.2,132.02,132.01,28.08869867]
[1763429622000,0.2,132.02,132.01,28.0548579]
[1763429622299,0.2,132.03,132.01,11.26634605]
[1763429622503,0.2,132.03,132.02,32.54418786]
[1763429622892,0.2,132.03,132.02,18.05647518]
[1763429623087,0.2,132.03,132.02,15.00882769]
[1763429623886,0.2,132.03,132.02,15.98835292]
[1763429624104,0.2,132.03,132.02,16.64835292]
[1763429624309,0.2,132.03,132.02,15.98835292]
[1763429624494,0.2,132.03,132.02,9.78882769]
[1763429624680,0.2,132.03,132.02,15.98835292]
[1763429625008,0.2,132.03,132.02,16.64835292]
[1763429625183,0.2,132.03,132.02,10.44882769]
[1763429625382,0.2,132.03,132.02,9.78882769]
[1763429625579,0.2,132.03,132.02,16.64889674]
[1763429626001,0.2,132.03,132.02,15.98527503]
[1763429626309,0.2,132.03,132.02,20.54527503]
[1763429626499,0.2,132.03,132.02,21.20527503]
[1763429626809,0.2,132.03,132.02,20.54527503]
[1763429627397,0.2,132.03,132.02,14.34882769]
[1763429627878,0.2,132.03,132.02,21.20527503]
[1763429628191,0.2,132.03,132.02,32.54418786]
[1763429628391,0.2,132.04,132.03,9.78882769]
[1763429628593,0.2,132.04,132.03,27.98418786]
[1763429629480,0.2,132.04,132.03,32.54418786]
[1763429629687,0.2,132.04,132.03,24.27654037]
[1763429630488,0.2,132.07,132.03,33.30159148]
[1763429630689,0.2,132.07,132.05,15.96848624]
[1763429630904,0.2,132.07,132.05,14.34882769]
[1763429632617,0.2,132.07,132.06,10.44882769]
[1763429632921,0.2,132.09,132.07,9.78882769]
[1763429633120,0.2,132.09,132.08,23.61654037]
[1763429633320,9.26771268,132.21,132.08,23.61654037]
[1763429633321,0.67,132.16,132.09,9.78882769]
[1763429633525,9.93771268,132.16,132.13,9.78882769]
[1763429633704,9.26771268,132.14,132.08,6.15839622]
[1763429634011,11.26771268,132.21,132.08,6.15839622]
[1763429634012,9.26771268,132.09,132.08,9.78882769]
[1763429634214,18.12096,132.12,132.08,9.78882769]
[1763429634411,9.26771268,132.1,132.06,14.34882769]
[1763429634620,9.26771268,132.09,132.06,14.34882769]
[1763429634823,9.26771268,132.09,132.06,5.22]
[1763429637195,9.26771268,132.09,132.06,14.34882769]
[1763429637518,9.93771268,132.1,132.06,14.34882769]
[1763429637826,18.12096,132.09,132.06,14.34882769]
[1763429638491,3.96496358,132.22,132.08,9.26771268]
[1763429638492,0.67,132.19,132.08,9.26771268]
[1763429638732,0.67,132.19,132.12,9.78882769]
[1763429639037,9.26771268,132.18,132.14,9.78882769]
[1763429639209,0.67,132.19,132.13,9.78882769]
[1763429639541,9.93771268,132.2,132.14,4.56]
[1763429639707,9.93771268,132.19,132.14,4.56]
[1763429639900,9.93771268,132.19,132.15,9.78882769]
[1763429640226,0.67,132.19,132.15,9.78882769]
[1763429640432,0.67,132.19,132.15,19.05654037]
[1763429640604,0.67,132.19,132.15,9.78882769]
[1763429640805,18.12096,132.18,132.15,19.05654037]
[1763429641034,18.12096,132.18,132.15,9.78882769]
[1763429641205,0.67,132.17,132.14,14.34882769]
[1763429641534,0.67,132.19,132.14,23.61654037]
[1763429641702,0.67,132.19,132.15,9.26771268]
[1763429641902,0.67,132.19,132.14,14.34882769]
[1763429642100,0.67,132.19,132.14,23.61654037]
[1763429642742,18.79096,132.19,132.15,4.56]
[1763429643043,5.97402428,132.28,132.15,4.56]
[1763429643044,0.67,132.22,132.18,9.78882769]
[1763429643255,0.67,132.27,132.22,9.78882769]
[1763429643529,0.67,132.27,132.24,9.78882769]
[1763429643721,18.12096,132.25,132.23,9.78882769]
[1763429643926,9.93771268,132.27,132.23,9.78882769]
[1763429643927,27.38867268,132.24,132.23,9.78882769]
[1763429644115,18.12096,132.21,132.17,4.56]
[1763429644311,9.26771268,132.2,132.16,4.56]
[1763429644629,0.67,132.2,132.16,13.82771268]
[1763429644832,9.26771268,132.21,132.16,4.56]
[1763429645302,9.26771268,132.21,132.16,13.82771268]
[1763429645502,0.67,132.25,132.17,0.66]
[1763429645703,0.67,132.25,132.19,9.26771268]
[1763429645926,0.67,132.25,132.19,13.82771268]
[1763429646204,18.12096,132.24,132.2,9.78882769]
[1763429646525,0.67,132.28,132.22,9.26771268]
[1763429646734,0.67,132.28,132.23,19.05654037]
[1763429646929,9.93771268,132.3,132.25,19.05654037]
[1763429647236,9.26771268,132.31,132.27,9.78882769]
[1763429647440,9.93771268,132.3,132.27,9.78882769]
[1763429647627,18.12096,132.27,132.21,9.78882769]
[1763429647820,9.26771268,132.25,132.21,9.78882769]
[1763429648023,9.26771268,132.25,132.19,4.56]
[1763429648024,9.26771268,132.22,132.19,9.78882769]
[1763429648219,9.26771268,132.21,132.19,9.78882769]
[1763429648438,9.26771268,132.21,132.18,9.78882769]
[1763429648818,9.26771268,132.22,132.18,9.78882769]
[1763429649014,9.93771268,132.22,132.18,9.78882769]
[1763429649235,18.12096,132.25,132.18,9.78882769]
[1763429649236,9.26771268,132.21,132.18,9.78882769]
[1763429649434,9.93771268,132.22,132.17,23.61654037]
[1763429649812,9.93771268,132.22,132.17,24.27654037]
[1763429650014,9.26771268,132.22,132.17,14.34882769]
[1763429650214,9.93771268,132.22,132.17,14.34882769]
[1763429650414,9.26771268,132.21,132.17,14.34882769]
[1763429650622,9.26771268,132.21,132.17,9.78882769]
[1763429650946,9.93771268,132.2,132.16,9.78882769]
[1763429651242,9.26771268,132.17,132.1,6.15839622]
[1763429651416,9.26771268,132.13,132.1,4.56]
[1763429651617,9.26771268,132.11,132.07,6.15839622]
[1763429651816,9.26771268,132.1,132.05,6.15839622]
[1763429652038,0.72,132.12,132.03,10.71839622]
[1763429652039,9.26771268,132.07,132.03,10.71839622]
[1763429652238,9.26771268,132.06,132.03,4.56]
[1763429652543,18.12096,132.09,132.01,6.15839622]
[1763429652544,9.26771268,132.04,132.01,6.15839622]
[1763429652750,0.72,132.05,132.0,6.15839622]
[1763429652751,9.26771268,132.03,132.0,6.15839622]
[1763429652911,9.26771268,132.04,132.0,6.84839622]
[1763429653117,9.26771268,132.01,131.98,6.15839622]
[1763429653540,0.72,132.04,131.99,15.4261089]
[1763429653752,0.72,132.08,132.03,9.26771268]
[1763429653933,9.26771268,132.06,132.03,9.78882769]
[1763429654420,9.98771268,132.06,132.02,25.21493659]
[1763429654617,9.26771268,132.09,132.05,9.26771268]
[1763429654846,0.72,132.11,132.06,9.78882769]
[1763429654847,5.89299054,132.1,132.06,9.78882769]
[1763429655050,0.72,132.11,132.08,9.78882769]
[1763429655225,24.01395054,132.12,132.08,9.78882769]
[1763429655426,5.89299054,132.09,132.07,9.78882769]
[1763429655632,5.89299054,132.1,132.06,9.78882769]
[1763429655829,5.89299054,132.09,132.06,9.78882769]
[1763429656126,5.89299054,132.08,132.05,9.78882769]
[1763429656739,6.61299054,132.07,132.05,9.78882769]
[1763429656948,6.61299054,132.07,132.04,9.78882769]
[1763429657152,0.72,132.07,132.04,9.78882769]
[1763429657323,6.61299054,132.09,132.04,15.94722391]
[1763429657523,0.72,132.09,132.06,9.78882769]
[1763429657834,18.12096,132.12,132.06,9.78882769]
[1763429658043,5.89299054,132.1,132.06,15.94722391]
[1763429658431,6.60299054,132.1,132.06,15.94722391]
[1763429658644,18.12096,132.13,132.06,15.94722391]
[1763429658956,5.89299054,132.09,132.06,15.94722391]
[1763429659332,0.71,132.08,132.07,15.94722391]
[1763429659549,6.60299054,132.08,132.07,9.78882769]
[1763429660448,6.60299054,132.08,132.07,15.94722391]
[1763429660650,6.60299054,132.08,132.07,9.78882769]
[1763429660859,6.60299054,132.08,132.06,6.15839622]
[1763429661165,6.60299054,132.07,132.06,9.78882769]
[1763429661349,6.60299054,132.07,132.05,9.78882769]
[1763429661550,6.60299054,132.06,132.05,15.94722391]
[1763429662042,0.71,132.06,132.05,15.94722391]
[1763429662356,6.60299054,132.06,132.05,15.94722391]
[1763429663265,6.60299054,132.06,132.05,9.78882769]
[1763429664233,6.60299054,132.06,132.04,6.22644714]
[1763429664436,6.60299054,132.05,132.04,16.01527483]
[1763429664634,6.60299054,132.05,132.02,16.01527483]
[1763429664863,5.89299054,132.03,132.02,16.01527483]
[1763429665243,0.71,132.04,132.02,16.01527483]
[1763429665470,5.89299054,132.04,132.02,18.05647518]
[1763429665654,24.01395054,132.05,132.03,8.26764749]
[1763429666040,5.89299054,132.04,132.03,18.05647518]
[1763429666245,5.89299054,132.04,132.03,9.78882769]
[1763429666868,6.60299054,132.04,132.03,16.02638147]
[1763429667043,6.60299054,132.04,132.03,9.78882769]
[1763429667568,6.60299054,132.04,132.01,16.02638147]
[1763429667569,18.12096,132.02,132.01,16.02638147]
[1763429667760,5.89299054,132.02,132.01,9.78882769]
[1763429667959,6.60299054,132.02,132.01,9.78882769]
[1763429668476,5.89299054,132.02,132.01,6.23755378]
[1763429668764,5.89299054,132.02,132.0,18.05647518]
[1763429669168,0.71,132.09,132.02,9.78882769]
[1763429669359,5.89299054,132.09,132.05,21.91195012]
[1763429669549,0.71,132.12,132.09,9.78882769]
[1763429669550,5.89299054,132.1,132.09,9.78882769]
[1763429669867,5.89299054,132.11,132.09,9.78882769]
[1763429670072,5.89299054,132.11,132.1,6.22438895]
[1763429670271,24.01395054,132.11,132.1,6.22438895]
[1763429670470,24.01395054,132.11,132.09,9.78882769]
[1763429670471,24.72395054,132.11,132.09,16.01321664]
[1763429670644,0.71,132.1,132.09,9.78882769]
[1763429670848,5.89299054,132.1,132.09,16.01321664]
[1763429671158,5.89299054,132.1,132.09,16.01621207]
[1763429671673,5.89299054,132.11,132.09,16.01621207]
[1763429672043,5.89299054,132.11,132.1,6.22738438]
[1763429672240,0.71,132.15,132.11,9.78882769]
[1763429672483,5.89299054,132.12,132.11,9.78882769]
[1763429672853,6.60299054,132.12,132.11,9.78882769]
[1763429673047,5.89299054,132.12,132.11,9.78882769]
[1763429673758,5.89299054,132.12,132.11,16.01621207]
[1763429674072,5.89299054,132.15,132.11,8.92764749]
[1763429674250,5.89299054,132.18,132.15,9.78882769]
[1763429674451,0.71,132.21,132.15,16.65649175]
[1763429674452,5.89299054,132.19,132.15,16.65649175]
[1763429674773,24.01395054,132.19,132.15,16.65649175]
[1763429675367,5.89299054,132.19,132.17,9.78882769]
[1763429676151,5.89299054,132.2,132.17,16.65649175]
[1763429676357,24.01395054,132.21,132.17,16.65649175]
[1763429677053,18.12096,132.21,132.17,16.65649175]
[1763429677265,6.60299054,132.2,132.17,15.99649175]
[1763429677462,24.01395054,132.18,132.17,9.78882769]
[1763429677664,5.89299054,132.18,132.14,9.78882769]
[1763429677878,5.89299054,132.15,132.14,9.78882769]
[1763429678679,18.12096,132.19,132.14,9.78882769]
[1763429678880,5.89299054,132.16,132.14,15.99649175]
[1763429679361,5.89299054,132.17,132.14,15.99649175]
[1763429680567,5.89299054,132.18,132.15,6.20766406]
[1763429680773,5.89299054,132.17,132.15,6.20766406]
[1763429680976,5.89299054,132.16,132.14,15.99649175]
[1763429681485,18.12096,132.21,132.14,15.99649175]
[1763429681686,5.89299054,132.15,132.14,9.78882769]
[1763429681876,5.89299054,132.15,132.13,9.78882769]
[1763429682181,6.55299054,132.14,132.12,9.78882769]
[1763429682360,24.01395054,132.13,132.12,9.78882769]
[1763429684179,18.12096,132.13,132.12,9.78882769]
[1763429684382,5.89299054,132.13,132.12,9.78882769]
[1763429684687,5.89299054,132.14,132.12,9.78882769]
[1763429685001,5.89299054,132.16,132.12,16.64649175]
[1763429685284,0.66,132.19,132.13,6.20766406]
[1763429685459,5.89299054,132.16,132.14,6.20766406]
[1763429686384,5.89299054,132.15,132.13,6.20766406]
[1763429686891,5.89299054,132.14,132.13,6.20766406]
[1763429687683,5.89299054,132.15,132.13,6.20766406]
[1763429687984,5.89299054,132.14,132.12,15.99649175]
[1763429688362,5.89299054,132.14,132.12,9.78882769]
[1763429688569,0.66,132.15,132.12,9.78882769]
[1763429688887,5.89299054,132.14,132.12,9.78882769]
[1763429689088,18.12096,132.17,132.12,15.99649175]
[1763429689288,6.55299054,132.22,132.15,9.78882769]
[1763429689494,0.66,132.21,132.19,9.78882769]
[1763429689695,5.89299054,132.2,132.19,9.78882769]
[1763429689983,5.89299054,132.2,132.17,6.2007671]
[1763429690185,5.89299054,132.18,132.16,15.98959479]
[1763429690591,5.89299054,132.19,132.16,15.98959479]
[1763429690891,6.55299054,132.19,132.17,6.2007671]
[1763429691698,5.89299054,132.18,132.16,9.78882769]
[1763429691874,5.89299054,132.18,132.15,9.78882769]
[1763429692363,6.55299054,132.19,132.15,15.98959479]
[1763429692568,5.89299054,132.18,132.15,15.98959479]
[1763429692789,6.55299054,132.18,132.15,15.98959479]
[1763429693087,5.89299054,132.24,132.12,6.2007671]
[1763429693088,5.89299054,132.16,132.12,6.2007671]
[1763429693403,5.89299054,132.13,132.1,6.2007671]
[1763429693572,5.89299054,132.12,132.11,6.2007671]
[1763429694289,5.89299054,132.14,132.11,6.2007671]
[1763429694505,5.89299054,132.13,132.12,9.78882769]
[1763429694679,5.89299054,132.13,132.12,15.98959479]
[1763429695365,5.89299054,132.13,132.12,6.2007671]
[1763429695565,6.55299054,132.13,132.12,6.2007671]
[1763429696270,6.55299054,132.13,132.1,18.05647518]
[1763429696271,6.55299054,132.13,132.11,6.2007671]
[1763429696576,5.89299054,132.12,132.11,6.2007671]
[1763429696779,6.55299054,132.12,132.11,6.2007671]
[1763429697207,5.89299054,132.13,132.11,6.2007671]
[1763429697371,5.89299054,132.13,132.11,8.26764749]
[1763429697567,18.12096,132.17,132.11,12.82764749]
[1763429697767,5.89299054,132.16,132.15,9.78882769]
[1763429698268,5.89299054,132.16,132.15,16.0245839]
[1763429698469,6.55299054,132.16,132.15,9.78882769]
[1763429699498,6.55299054,132.16,132.12,6.23575621]
[1763429699671,18.12096,132.17,132.12,6.23575621]
[1763429699672,0.66,132.15,132.12,6.23575621]
[1763429699868,0.66,132.15,132.13,6.23575621]
[1763429699869,5.89299054,132.14,132.13,6.23575621]
[1763429700067,0.66,132.15,132.13,6.23575621]
[1763429700396,5.89299054,132.14,132.13,6.23575621]
[1763429700692,5.89299054,132.14,132.12,6.23575621]
[1763429700903,5.89299054,132.13,132.12,6.23575621]
[1763429702189,5.89299054,132.13,132.11,9.78882769]
[1763429702190,5.89299054,132.13,132.11,18.05647518]
[1763429702890,5.89299054,132.12,132.11,16.04463611]
[1763429703411,6.55299054,132.12,132.11,16.04463611]
[1763429704675,18.12096,132.16,132.11,0.65]
[1763429704882,18.12096,132.16,132.15,16.03910895]
[1763429704883,5.89299054,132.16,132.15,16.03910895]
[1763429705202,5.89299054,132.17,132.15,16.03910895]
[1763429705501,5.89299054,132.18,132.16,16.03361704]
[1763429706302,0.66,132.25,132.17,10.43882769]
[1763429706500,5.89299054,132.22,132.19,16.01663273]
[1763429706816,5.89299054,132.23,132.21,16.01663273]
[1763429707017,18.12096,132.29,132.21,16.01663273]
[1763429707179,171.39299054,132.32,132.21,16.01663273]
[1763429707180,5.89299054,132.26,132.23,9.78882769]
[1763429707803,5.89299054,132.25,132.23,9.78882769]